fUSD/lending_fUSD_20250428
["ID","MTS","AMOUNT","RATE_DAILY","PERIOD"]
[359197565,1745804519508,480.0,0.00041095,30]
[359197566,1745804519602,480.0,0.00041095,30]
[359197567,1745804519748,480.0,0.00041095,30]
[359197568,1745804519848,480.0,0.00041095,30]
[359197569,1745804520004,480.0,0.00041095,30]
[359197570,1745804520114,480.0,0.00041095,30]
[359197571,1745804520254,172.29057691,0.00041095,30]
[359197572,1745804520360,480.0,0.00041095,30]
[359197573,1745804520392,480.0,0.00041095,30]
[359197574,1745804520615,331.98695868,0.00041095,30]
[359197575,1745804520827,480.0,0.00041095,30]
[359197576,1745804521039,480.0,0.00041095,30]
[359197577,1745804521287,480.0,0.00041095,30]
[359197578,1745804521515,480.0,0.00041095,30]
[359197579,1745804521761,480.0,0.00041095,30]
[359197580,1745804522006,480.0,0.00041095,30]
[359197581,1745804522126,480.0,0.00041095,30]
[359197582,1745804522268,336.99,0.00041095,30]
[359197583,1745804522400,329.19899201,0.00041095,30]
[359197584,1745804522690,400.0,0.00041095,30]
[359197585,1745804524365,468.07,0.00041095,30]
[359197586,1745804524402,400.0,0.00041095,30]
[359197587,1745804525327,480.0,0.00041095,30]
[359197588,1745804525596,480.0,0.00041095,30]
[359197589,1745804525711,480.0,0.00041095,30]
[359197590,1745804525925,480.0,0.00041095,30]
[359197591,1745804525988,480.0,0.00041095,30]
[359197592,1745804526187,338.2502592,0.00041095,30]
[359197593,1745804526228,564.53518222,0.00041095,30]
[359197594,1745804526796,400.0,0.00041095,30]
[359197595,1745804529893,480.0,0.00041095,30]
[359197596,1745804530138,480.0,0.00041095,30]
[359197597,1745804530379,307.35284524,0.00041095,30]
[359197598,1745804531245,480.0,0.00041095,30]
[359197599,1745804531487,480.0,0.00041095,30]
[359197600,1745804531718,250.3394359,0.00041095,30]
[359197601,1745804531982,409.22,0.00041095,30]
[359197602,1745804532212,480.0,0.00041095,30]
[359197603,1745804532473,480.0,0.00041095,30]
[359197604,1745804532718,355.48368185,0.00041095,30]
[359197605,1745804533474,480.0,0.00041095,30]
[359197606,1745804533733,480.0,0.00041095,30]
[359197607,1745804534000,247.80190051,0.00041095,30]
[359197608,1745804534033,2389.54,0.00041,30]
[359197609,1745804534283,400.0,0.00041095,30]
[359197610,1745804535571,480.0,0.00041095,30]
[359197611,1745804535813,338.32133329,0.00041095,30]
[359197612,1745804537682,480.0,0.00041095,30]
[359197613,1745804537914,472.40762364,0.00041095,30]
[359197614,1745804540856,480.0,0.00041095,30]
[359197615,1745804541103,322.58703673,0.00041095,30]
[359197616,1745804542784,480.0,0.00041095,30]
[359197617,1745804543027,480.0,0.00041095,30]
[359197618,1745804543374,250.08284463,0.00041095,30]
[359197619,1745804544501,480.0,0.00041095,30]
[359197620,1745804544765,480.0,0.00041095,30]
[359197621,1745804545020,602.49968623,0.00041095,30]
[359197622,1745804545155,480.0,0.00041095,30]
[359197623,1745804545285,480.0,0.00041095,30]
[359197624,1745804545451,480.0,0.00041095,30]
[359197625,1745804545536,341.39207928,0.00041095,30]
[359197626,1745804545693,246.43947583,0.00041095,30]
[359197627,1745804546506,480.0,0.00041095,30]
[359197628,1745804546752,346.63032472,0.00041095,30]
[359197629,1745804550091,480.0,0.00041095,30]
[359197630,1745804550353,332.18486966,0.00041095,30]
[359197631,1745804551251,548.92,0.00041095,30]
[359197632,1745804552478,503.63655267,0.00041095,30]
[359197633,1745804552538,300.0,0.00041095,30]
[359197634,1745804552775,300.0,0.00041095,30]
[359197635,1745804552836,510.73286842,0.00041095,30]
[359197636,1745804553013,313.12666052,0.00041095,30]
[359197637,1745804554640,480.0,0.00041095,30]
[359197638,1745804554931,323.52592884,0.00041095,30]
[359197639,1745804556460,480.0,0.00041095,30]
[359197640,1745804556969,480.0,0.00041095,30]
[359197641,1745804557233,480.0,0.00041095,30]
[359197642,1745804557483,173.60136312,0.00041095,30]
[359197643,1745804559608,480.0,0.00041095,30]
[359197644,1745804559849,480.0,0.00041095,30]
[359197645,1745804560281,260.53202608,0.00041095,30]
[359197646,1745804562490,402.08136312,0.00041095,30]
[359197647,1745804563063,513.64867799,0.00041095,30]
[359197648,1745804564395,415.05682469,0.00041095,30]
[359197649,1745804566239,400.0,0.00041095,30]
[359197650,1745804569614,508.29206603,0.00041095,30]
[359197651,1745804574528,480.0,0.00041095,30]
[359197652,1745804574760,480.0,0.00041095,30]
[359197653,1745804575004,480.0,0.00041095,30]
[359197654,1745804575239,480.0,0.00041095,30]
[359197655,1745804575311,400.0,0.00041095,30]
[359197656,1745804575475,480.0,0.00041095,30]
[359197657,1745804575699,480.0,0.00041095,30]
[359197658,1745804575940,480.0,0.00041095,30]
[359197659,1745804576206,480.0,0.00041095,30]
[359197660,1745804576444,480.0,0.00041095,30]
[359197661,1745804576473,400.0,0.00041095,30]
[359197662,1745804576687,461.02879778,0.00041095,30]
[359197663,1745804577004,480.0,0.00041095,30]
[359197664,1745804577244,480.0,0.00041095,30]
[359197665,1745804577477,260.59890025,0.00041095,30]
[359197666,1745804578240,480.0,0.00041095,30]
[359197667,1745804578510,480.0,0.00041095,30]
[359197668,1745804578773,480.0,0.00041095,30]
[359197669,1745804579020,572.62754197,0.00041095,30]
[359197670,1745804579499,578.82,0.00041095,30]
[359197671,1745804582600,480.0,0.00041095,30]
[359197672,1745804582871,340.17253563,0.00041095,30]
[359197673,1745804583472,400.0,0.00041095,30]
[359197674,1745804584914,480.0,0.00041095,30]
[359197675,1745804585169,480.0,0.00041095,30]
[359197676,1745804585455,271.09542688,0.00041095,30]
[359197677,1745804585679,400.0,0.00041095,30]
[359197678,1745804586381,480.0,0.00041095,30]
[359197679,1745804586661,339.50041951,0.00041095,30]
[359197680,1745804588522,480.0,0.00041095,30]
[359197681,1745804588748,336.03358041,0.00041095,30]
[359197682,1745804589308,511.98749641,0.00041095,30]
[359197683,1745804591472,413.1309187,0.00041095,30]
[359197684,1745804592183,480.0,0.00041095,30]
[359197685,1745804592425,333.85157687,0.00041095,30]
[359197686,1745804592986,480.0,0.00041095,30]
[359197687,1745804593047,400.0,0.00041095,30]
[359197688,1745804593214,480.0,0.00041095,30]
[359197689,1745804593286,480.0,0.00041095,30]
[359197690,1745804593499,331.87761476,0.00041095,30]
[359197691,1745804593837,505.0681382,0.00041095,30]
[359197692,1745804594884,480.0,0.00041095,30]
[359197693,1745804595127,184.75,0.00041095,30]
[359197694,1745804595192,480.0,0.00041095,30]
[359197695,1745804595465,342.5,0.00041095,30]
[359197696,1745804595980,-153.23236294,0.00019634,2]
[359197697,1745804597533,480.0,0.00041095,30]
[359197698,1745804597749,480.0,0.00041095,30]
[359197699,1745804597973,262.9913578,0.00041095,30]
[359197700,1745804598893,400.0,0.00041095,30]
[359197701,1745804600765,493.79882793,0.00041095,30]
[359197702,1745804601651,480.0,0.00041095,30]
[359197703,1745804601728,480.0,0.00041095,30]
[359197704,1745804601978,302.43860987,0.00041095,30]
[359197705,1745804602644,476.62,0.00041095,30]
[359197706,1745804603488,480.0,0.00041095,30]
[359197707,1745804603724,157.3,0.00041095,30]
[359197708,1745804603895,480.0,0.00041095,30]
[359197709,1745804604146,480.0,0.00041095,30]
[359197710,1745804604437,480.0,0.00041095,30]
[359197711,1745804604683,206.67345905,0.00041095,30]
[359197712,1745804605778,402.72,0.00041095,30]
[359197713,1745804608177,480.0,0.00041095,30]
[359197714,1745804608460,349.70168144,0.00041095,30]
[359197715,1745804608781,480.0,0.00041095,30]
[359197716,1745804609032,328.32377146,0.00041095,30]
[359197717,1745804610025,-18.45747697,0.00019634,2]
[359197718,1745804610047,-676.76414903,0.00019665,2]
[359197719,1745804610068,-6523.4413,0.00019699,2]
[359197720,1745804610092,-150.0,0.00019734,2]
[359197721,1745804610114,-44.6420787,0.00019737,2]
[359197722,1745804610140,-200.0,0.0001974,2]
[359197723,1745804610169,-150.0,0.0001974,2]
[359197724,1745804610192,-200.0,0.00019747,2]
[359197725,1745804610217,-150.0,0.00019749,2]
[359197726,1745804610240,-150.0,0.00019759,2]
[359197727,1745804610264,-150.0,0.00019766,2]
[359197728,1745804610288,-150.0,0.00019778,2]
[359197729,1745804610310,-300.0,0.0001979,2]
[359197730,1745804610334,-19629.07889496,0.00019791,2]
[359197731,1745804610356,-155.3579213,0.00019799,2]
[359197732,1745804610380,-1200.0,0.00019799,2]
[359197733,1745804610404,-1088.3649,0.000198,2]
[359197734,1745804610426,-1000.0,0.000198,2]
[359197735,1745804610453,-150.0,0.00019805,2]
[359197736,1745804610477,-150.0,0.0001981,2]
[359197737,1745804610501,-150.0,0.00019811,2]
[359197738,1745804610526,-150.0,0.00019814,2]
[359197739,1745804610551,-150.0,0.0001982,2]
[359197740,1745804610574,-150.0,0.00019838,2]
[359197741,1745804610597,-150.0,0.00019847,2]
[359197742,1745804610619,-150.0,0.00019856,2]
[359197743,1745804610642,-676.76414903,0.00019863,2]
[359197744,1745804610665,-150.0,0.00019865,2]
[359197745,1745804610687,-507.9872631,0.00019873,2]
[359197746,1745804610708,-505.79642569,0.00019873,2]
[359197747,1745804610731,-150.0,0.00019873,2]
[359197748,1745804610753,-150.0,0.00019876,2]
[359197749,1745804610776,-500.0,0.00019877,2]
[359197750,1745804610799,-500.0,0.00019877,2]
[359197751,1745804610823,-500.0,0.00019877,2]
[359197752,1745804610846,-500.0,0.00019877,2]
[359197753,1745804610869,-500.0,0.00019877,2]
[359197754,1745804610894,-500.0,0.00019877,2]
[359197755,1745804610919,-599.65132474,0.00019877,2]
[359197756,1745804610943,-500.0,0.00019877,2]
[359197757,1745804610967,-500.0,0.00019877,2]
[359197758,1745804610991,-500.0,0.00019877,2]
[359197759,1745804611016,-500.0,0.00019877,2]
[359197760,1745804611040,-500.0,0.00019877,2]
[359197761,1745804611064,-500.0,0.00019877,2]
[359197762,1745804611087,-500.0,0.00019877,2]
[359197763,1745804611112,-500.0,0.00019877,2]
[359197764,1745804611139,-500.0,0.00019877,2]
[359197765,1745804611163,-500.0,0.00019877,2]
[359197766,1745804611188,-500.0,0.00019877,2]
[359197767,1745804611212,-500.0,0.00019877,2]
[359197768,1745804611236,-500.0,0.00019877,2]
[359197769,1745804611260,-500.0,0.00019877,2]
[359197770,1745804611285,-500.0,0.00019877,2]
[359197771,1745804611309,-500.0,0.00019877,2]
[359197772,1745804611333,-150.0,0.00019879,2]
[359197773,1745804611358,-150.0,0.00019886,2]
[359197774,1745804611383,-1000.0,0.00019886,2]
[359197775,1745804611405,-150.0,0.00019891,2]
[359197776,1745804611428,-366.74770954,0.00019891,2]
[359197777,1745804611448,-12500.0,0.00019891,2]
[359197778,1745804611469,-366.74770953,0.00019892,2]
[359197779,1745804611492,-366.74770953,0.00019894,2]
[359197780,1745804611516,-150.0,0.00019894,2]
[359197781,1745804611538,-366.74770953,0.00019895,2]
[359197782,1745804611739,-366.74770953,0.00019896,2]
[359197783,1745804611762,-366.74770953,0.00019897,2]
[359197784,1745804611784,-366.74770953,0.00019899,2]
[359197785,1745804611809,-500.0,0.00019899,2]
[359197786,1745804611834,-286.53017486,0.00019899,2]
[359197787,1745804611858,-500.0,0.00019899,2]
[359197788,1745804611883,-500.0,0.00019899,2]
[359197789,1745804611905,-45804.10961154,0.000199,2]
[359197790,1745804611928,-298.8720253,0.000199,2]
[359197791,1745804611953,-377.02757766,0.000199,2]
[359197792,1745804611975,-51613.29226569,0.000199,2]
[359197793,1745804611999,-12500.0,0.000199,2]
[359197794,1745804612023,-366.74770953,0.000199,2]
[359197795,1745804612046,-46644.25413861,0.000199,2]
[359197796,1745804612069,-12500.0,0.000199,2]
[359197797,1745804612094,-1294.58316665,0.000199,2]
[359197798,1745804612118,-1349.478,0.00019903,2]
[359197799,1745804612147,-112385.9834293,0.00019903,2]
[359197800,1745804612173,-150.0,0.00019907,2]
[359197801,1745804612197,-150.0,0.00019909,2]
[359197802,1745804612222,-150.0,0.00019919,2]
[359197803,1745804612246,-150.0,0.00019921,2]
[359197804,1745804612270,-150.0,0.00019924,2]
[359197805,1745804612293,-150.0,0.00019936,2]
[359197806,1745804612316,-346.59202242,0.00019936,2]
[359197807,1745804612338,-500.0,0.00019945,2]
[359197808,1745804612362,-150.0,0.00019949,2]
[359197809,1745804612387,-150.0,0.0001995,2]
[359197810,1745804612411,-150.0,0.00019956,2]
[359197811,1745804612434,-731.69426955,0.00019958,2]
[359197812,1745804612457,-150.0,0.00019963,2]
[359197813,1745804612480,-150.0,0.00019966,2]
[359197814,1745804612503,-205.04320549,0.00019968,2]
[359197815,1745804612529,-150.0,0.00019971,2]
[359197816,1745804612552,-181.0,0.00019973,2]
[359197817,1745804612574,-501.87563173,0.00019973,2]
[359197818,1745804612597,-503.26779058,0.00019973,2]
[359197819,1745804612618,-500.41447416,0.00019973,2]
[359197820,1745804612640,-500.0,0.00019973,2]
[359197821,1745804612661,-502.86414845,0.00019973,2]
[359197822,1745804612683,-500.0,0.00019973,2]
[359197823,1745804612704,-500.0,0.00019973,2]
[359197824,1745804612725,-502.19667785,0.00019973,2]
[359197825,1745804612749,-500.82442902,0.00019973,2]
[359197826,1745804612769,-501.96001846,0.00019973,2]
[359197827,1745804612790,-500.0,0.00019973,2]
[359197828,1745804612811,-150.30637628,0.00019973,2]
[359197829,1745804612832,-150.0,0.00019973,2]
[359197830,1745804612853,-500.0,0.00019973,2]
[359197831,1745804612874,-500.0,0.00019973,2]
[359197832,1745804612897,-1745.0,0.00019973,2]
[359197833,1745804612920,-500.0,0.00019973,2]
[359197834,1745804612941,-150.0,0.00019973,2]
[359197835,1745804612965,-500.0,0.00019973,2]
[359197836,1745804612987,-76074.760659,0.00019986,2]
[359197837,1745804613009,-13944.3562424,0.00019986,2]
[359197838,1745804613033,-5963.676508,0.00019986,2]
[359197839,1745804613057,-594.0,0.0002,2]
[359197840,1745804613080,-10438.73168358,0.0002,2]
[359197841,1745804613106,-66978.66372668,0.0002,2]
[359197842,1745804613132,-358.79804136,0.0002,2]
[359197843,1745804613157,-42201.37479595,0.0002,2]
[359197844,1745804613182,-1200.0,0.0002,2]
[359197845,1745804613205,-188.0,0.0002,2]
[359197846,1745804613231,-225124.79165357,0.0002,2]
[359197847,1745804613256,-351069.31170446,0.0002,2]
[359197848,1745804613499,480.0,0.00041095,30]
[359197849,1745804613542,480.0,0.00041095,30]
[359197850,1745804613575,428.1045728,0.00041095,30]
[359197851,1745804613608,480.0,0.00041095,30]
[359197852,1745804613650,480.0,0.00041095,30]
[359197853,1745804613694,316.99115215,0.00041095,30]
[359197854,1745804614619,478.19,0.00041095,30]
[359197855,1745804615632,400.0,0.00041095,30]
[359197856,1745804618294,480.0,0.00041095,30]
[359197857,1745804618344,400.0,0.00041095,30]
[359197858,1745804618418,2665.3,0.00019158,2]
[359197859,1745804618546,328.19888047,0.00041095,30]
[359197860,1745804619846,447.06861003,0.00041095,30]
[359197861,1745804620700,480.0,0.00041095,30]
[359197862,1745804620962,480.0,0.00041095,30]
[359197863,1745804621193,480.0,0.00041095,30]
[359197864,1745804621430,480.0,0.00041095,30]
[359197865,1745804621664,480.0,0.00041095,30]
[359197866,1745804621888,480.0,0.00041095,30]
[359197867,1745804622135,480.0,0.00041095,30]
[359197868,1745804622377,480.0,0.00041095,30]
[359197869,1745804622609,469.01449252,0.00041095,30]
[359197870,1745804623159,507.83690663,0.00041095,30]
[359197871,1745804624827,480.0,0.00041095,30]
[359197872,1745804624901,480.0,0.00041095,30]
[359197873,1745804625020,480.0,0.00041095,30]
[359197874,1745804625131,480.0,0.00041095,30]
[359197875,1745804625166,480.0,0.00041095,30]
[359197876,1745804625465,480.0,0.00041095,30]
[359197877,1745804625499,261.54777258,0.00041095,30]
[359197878,1745804625530,243.51319768,0.00041095,30]
[359197879,1745804625978,258.38126854,0.00041095,30]
[359197880,1745804627321,585.55,0.00041095,30]
[359197881,1745804629101,480.0,0.00041095,30]
[359197882,1745804629379,323.9285305,0.00041095,30]
[359197883,1745804630279,480.0,0.00041095,30]
[359197884,1745804630522,480.0,0.00041095,30]
[359197885,1745804630779,267.03126665,0.00041095,30]
[359197886,1745804632656,480.0,0.00041095,30]
[359197887,1745804632903,480.0,0.00041095,30]
[359197888,1745804633154,333.24121388,0.00041095,30]
[359197889,1745804635178,480.0,0.00041095,30]
[359197890,1745804635423,322.41544165,0.00041095,30]
[359197891,1745804636552,480.0,0.00041095,30]
[359197892,1745804636798,480.0,0.00041095,30]
[359197893,1745804637040,347.53181397,0.00041095,30]
[359197894,1745804637114,480.0,0.00041095,30]
[359197895,1745804637339,480.0,0.00041095,30]
[359197896,1745804637589,393.49764277,0.00041095,30]
[359197897,1745804637885,400.0,0.00041095,30]
[359197898,1745804638770,480.0,0.00041095,30]
[359197899,1745804639012,370.14,0.00041095,30]
[359197900,1745804639600,605.79476921,0.00041095,30]
[359197901,1745804639677,411.39730005,0.00041095,30]
[359197902,1745804640476,480.0,0.00041095,30]
[359197903,1745804640723,324.2714611,0.00041095,30]
[359197904,1745804640895,400.0,0.00041095,30]
[359197905,1745804642392,400.0,0.00041095,30]
[359197906,1745804642636,162.09078105,0.00041095,30]
[359197907,1745804645163,480.0,0.00041095,30]
[359197908,1745804645399,480.0,0.00041095,30]
[359197909,1745804645663,480.0,0.00041095,30]
[359197910,1745804645881,487.82,0.00041095,30]
[359197911,1745804645911,480.0,0.00041095,30]
[359197912,1745804646276,609.38191449,0.00041095,30]
[359197913,1745804646485,480.0,0.00041095,30]
[359197914,1745804646598,402.28097861,0.00041095,30]
[359197915,1745804646718,480.0,0.00041095,30]
[359197916,1745804646747,480.0,0.00041095,30]
[359197917,1745804646960,266.67085364,0.00041095,30]
[359197918,1745804647039,156.52,0.00041095,30]
[359197919,1745804647672,400.0,0.00041095,30]
[359197920,1745804648290,480.0,0.00041095,30]
[359197921,1745804648541,480.0,0.00041095,30]
[359197922,1745804648817,261.3722815,0.00041095,30]
[359197923,1745804649519,480.0,0.00041095,30]
[359197924,1745804649789,177.58,0.00041095,30]
[359197925,1745804651107,480.0,0.00041095,30]
[359197926,1745804651249,329.05904162,0.00041095,30]
[359197927,1745804652468,480.0,0.00041095,30]
[359197928,1745804652712,334.14129342,0.00041095,30]
[359197929,1745804652948,400.0,0.00041095,30]
[359197930,1745804653399,400.0,0.00041095,30]
[359197931,1745804654887,480.0,0.00041095,30]
[359197932,1745804654921,400.95709431,0.00041095,30]
[359197933,1745804655132,480.0,0.00041095,30]
[359197934,1745804655335,462.44,0.00041095,30]
[359197935,1745804655575,480.0,0.00041095,30]
[359197936,1745804655709,262.16031841,0.00041095,30]
[359197937,1745804655822,515.49,0.00041095,30]
[359197938,1745804656487,402.98544,0.00041095,30]
[359197939,1745804656609,480.0,0.00041095,30]
[359197940,1745804656859,480.0,0.00041095,30]
[359197941,1745804657145,480.0,0.00041095,30]
[359197942,1745804657376,161.84762236,0.00041095,30]
[359197943,1745804657616,480.0,0.00041095,30]
[359197944,1745804657850,482.77,0.00041095,30]
[359197945,1745804657880,326.9764897,0.00041095,30]
[359197946,1745804658281,480.0,0.00041095,30]
[359197947,1745804658518,322.94843873,0.00041095,30]
[359197948,1745804659990,583.32,0.00041095,30]
[359197949,1745804660320,480.0,0.00041095,30]
[359197950,1745804660600,480.0,0.00041095,30]
[359197951,1745804660985,513.7971141,0.00041095,30]
[359197952,1745804661718,400.0,0.00041095,30]
[359197953,1745804662889,480.0,0.00041095,30]
[359197954,1745804663139,480.0,0.00041095,30]
[359197955,1745804663352,517.99,0.00041095,30]
[359197956,1745804663495,337.13528649,0.00041095,30]
[359197957,1745804663621,582.57,0.00041095,30]
[359197958,1745804664946,591.57,0.00041095,30]
[359197959,1745804664988,480.0,0.00041095,30]
[359197960,1745804665234,320.0,0.00041095,30]
[359197961,1745804665287,195.599768,0.00041095,30]
[359197962,1745804665564,575.87,0.00041095,30]
[359197963,1745804665596,480.0,0.00041095,30]
[359197964,1745804665844,325.52746131,0.00041095,30]
[359197965,1745804667546,480.0,0.00041095,30]
[359197966,1745804667781,480.0,0.00041095,30]
[359197967,1745804668023,241.43479035,0.00041095,30]
[359197968,1745804668748,210.0,0.00041096,30]
[359197969,1745804669163,407.83323172,0.00041095,30]
[359197970,1745804669707,628.78,0.00041095,30]
[359197971,1745804671838,480.0,0.00041095,30]
[359197972,1745804672169,480.0,0.00041095,30]
[359197973,1745804672418,480.0,0.00041095,30]
[359197974,1745804672651,161.4873556,0.00041095,30]
[359197975,1745804674469,480.0,0.00041095,30]
[359197976,1745804674865,480.0,0.00041095,30]
[359197977,1745804675183,480.0,0.00041095,30]
[359197978,1745804675349,480.0,0.00041095,30]
[359197979,1745804675451,167.47934001,0.00041095,30]
[359197980,1745804675610,480.0,0.00041095,30]
[359197981,1745804675855,480.0,0.00041095,30]
[359197982,1745804676002,480.0,0.00041095,30]
[359197983,1745804676040,480.0,0.00041095,30]
[359197984,1745804676116,480.0,0.00041095,30]
[359197985,1745804676306,480.0,0.00041095,30]
[359197986,1745804676352,480.0,0.00041095,30]
[359197987,1745804676544,389.8999034,0.00041095,30]
[359197988,1745804676584,262.97495963,0.00041095,30]
[359197989,1745804676615,480.0,0.00041095,30]
[359197990,1745804676845,253.2,0.00041095,30]
[359197991,1745804676877,408.23,0.00041095,30]
[359197992,1745804678548,400.0,0.00041095,30]
[359197993,1745804678974,480.0,0.00041095,30]
[359197994,1745804679212,480.0,0.00041095,30]
[359197995,1745804679423,480.0,0.00041095,30]
[359197996,1745804679454,480.0,0.00041095,30]
[359197997,1745804679670,480.0,0.00041095,30]
[359197998,1745804679703,480.0,0.00041095,30]
[359197999,1745804679798,403.82,0.00041095,30]
[359198000,1745804679908,480.0,0.00041095,30]
[359198001,1745804679942,188.98,0.00041095,30]
[359198002,1745804680131,470.40934173,0.00041095,30]
[359198003,1745804680466,480.0,0.00041095,30]
[359198004,1745804680733,448.35,0.00041095,30]
[359198005,1745804681536,400.0,0.00041095,30]
[359198006,1745804681868,480.0,0.00041095,30]
[359198007,1745804682105,320.0,0.00041095,30]
[359198008,1745804686077,480.0,0.00041095,30]
[359198009,1745804686178,480.0,0.00041095,30]
[359198010,1745804686345,480.0,0.00041095,30]
[359198011,1745804686551,400.0,0.00041095,30]
[359198012,1745804686623,249.3036581,0.00041095,30]
[359198013,1745804686765,320.0,0.00041095,30]
[359198014,1745804687672,480.0,0.00041095,30]
[359198015,1745804689057,334.18234802,0.00041095,30]
[359198016,1745804690164,480.0,0.00041095,30]
[359198017,1745804690411,480.0,0.00041095,30]
[359198018,1745804690664,480.0,0.00041095,30]
[359198019,1745804690935,224.59,0.00041095,30]
[359198020,1745804692789,507.39791938,0.00041095,30]
[359198021,1745804693907,400.0,0.00041095,30]
[359198022,1745804694708,267.31984821,0.00041095,30]
[359198023,1745804697662,430.92339421,0.00041095,30]
[359198024,1745804698309,480.0,0.00041095,30]
[359198025,1745804698901,480.0,0.00041095,30]
[359198026,1745804699152,299.14,0.00041095,30]
[359198027,1745804699678,400.0,0.00041095,30]
[359198028,1745804699754,480.0,0.00041095,30]
[359198029,1745804700032,480.0,0.00041095,30]
[359198030,1745804700298,480.0,0.00041095,30]
[359198031,1745804700543,480.0,0.00041095,30]
[359198032,1745804700802,266.58927696,0.00041095,30]
[359198033,1745804701449,1650.31,0.00017133,2]
[359198034,1745804702009,480.0,0.00041095,30]
[359198035,1745804702247,320.0,0.00041095,30]
[359198036,1745804703121,280.11062916,0.00041095,30]
[359198037,1745804703194,400.0,0.00041095,30]
[359198038,1745804703254,480.0,0.00041095,30]
[359198039,1745804703486,480.0,0.00041095,30]
[359198040,1745804703722,480.0,0.00041095,30]
[359198041,1745804703867,480.0,0.00041095,30]
[359198042,1745804703966,177.52617884,0.00041095,30]
[359198043,1745804704199,243.92,0.00041095,30]
[359198044,1745804704573,480.0,0.00041095,30]
[359198045,1745804704895,480.0,0.00041095,30]
[359198046,1745804705123,480.0,0.00041095,30]
[359198047,1745804705728,480.0,0.00041095,30]
[359198048,1745804706223,480.0,0.00041095,30]
[359198049,1745804706469,480.0,0.00041095,30]
[359198050,1745804706707,480.0,0.00041095,30]
[359198051,1745804706760,538.31,0.00041095,30]
[359198052,1745804706796,480.0,0.00041095,30]
[359198053,1745804706838,480.0,0.00041095,30]
[359198054,1745804706876,400.0,0.00041095,30]
[359198055,1745804706943,287.22642697,0.00041095,30]
[359198056,1745804706994,480.0,0.00041095,30]
[359198057,1745804707064,480.0,0.00041095,30]
[359198058,1745804707331,480.0,0.00041095,30]
[359198059,1745804707368,480.0,0.00041095,30]
[359198060,1745804707568,170.69573318,0.00041095,30]
[359198061,1745804707615,480.0,0.00041095,30]
[359198062,1745804707853,480.0,0.00041095,30]
[359198063,1745804708230,480.0,0.00041095,30]
[359198064,1745804708466,452.32,0.00041095,30]